bitfinex/quotes_ETHUSD_20250821
["timestamp","ask_amount","ask_price","bid_price","bid_amount"]
[1755760593099,0.002,4302.5,4300.9,0.66]
[1755760593251,0.002,4302.5,4302.2,0.3015]
[1755760593449,0.002,4302.5,4302.2,3.547]
[1755760593678,0.4165,4302.3,4302.2,3.547]
[1755760593878,0.118,4302.3,4302.2,3.8485]
[1755760594183,0.4165,4302.3,4302.2,3.547]
[1755760594581,0.8763,4302.3,4301.7,1.789]
[1755760594784,0.8763,4302.3,4301.8,3.547]
[1755760594785,0.4598,4302.2,4301.8,3.547]
[1755760595001,0.2985,4301.9,4301.8,3.547]
[1755760595184,0.4145,4301.9,4301.8,3.547]
[1755760596182,0.8743,4301.9,4301.8,3.547]
[1755760596386,0.8743,4301.9,4301.7,5.336]
[1755760596685,0.116,4301.9,4301.8,3.0]
[1755760596889,0.116,4301.9,4301.8,3.32474608]
[1755760598959,0.116,4301.9,4301.8,3.75484608]
[1755760599279,0.116,4301.9,4301.8,4.55563307]
[1755760599865,0.116,4301.9,4301.8,4.12553307]
[1755760600065,0.116,4301.9,4301.8,3.32474608]
[1755760600660,0.116,4301.9,4301.8,3.75484608]
[1755760603865,0.118,4301.9,4301.8,3.75484608]
[1755760604063,0.118,4301.9,4301.8,3.7316]
[1755760604294,0.002,4301.9,4301.8,4.3916]
[1755760604603,0.002,4301.9,4301.8,13.02021602]
[1755760604896,0.002,4301.9,4301.8,10.67236164]
[1755760605393,0.002,4301.9,4301.8,12.99696994]
[1755760605966,0.002,4301.9,4301.8,8.80696994]
[1755760610430,0.002,4301.9,4301.8,12.99696994]
[1755760610591,0.002,4302.3,4302.2,10.56364212]
[1755760610783,0.002,4302.3,4302.2,19.10015574]
[1755760610982,0.002,4302.3,4302.2,19.57045574]
[1755760611282,0.002,4302.3,4302.2,23.76045574]
[1755760611596,0.002,4302.5,4302.4,2.32428412]
[1755760611774,0.002,4302.5,4302.4,9.17922696]
[1755760611982,0.002,4302.5,4302.4,11.98842375]
[1755760612820,0.002,4302.5,4302.4,6.98730463]
[1755760613025,0.002,4302.5,4302.4,18.11155458]
[1755760613216,0.002,4302.5,4302.4,14.56655458]
[1755760613419,0.002,4302.5,4302.4,18.11155458]
[1755760613713,0.002,4302.5,4302.4,6.51700463]
[1755760613894,0.2954,4302.5,4302.4,14.99341495]
[1755760614309,0.002,4302.5,4302.4,14.99341495]
[1755760615204,0.002,4302.5,4302.4,15.27911495]
[1755760616396,0.002,4302.5,4302.4,15.45286024]
[1755760617020,0.2954,4302.5,4302.4,0.38291029]
[1755760617222,0.8802,4302.5,4302.4,0.093165]
[1755760617422,0.8802,4302.5,4301.7,1.788]
[1755760617423,1.728145,4302.5,4301.7,1.788]
[1755760617717,0.116,4301.8,4301.7,1.788]
[1755760617906,0.8782,4301.8,4301.5,3.545]
[1755760618218,7.57924995,4301.6,4301.0,3.545]
[1755760618537,0.4094,4301.1,4300.8,3.021]
[1755760619093,0.4688,4301.0,4300.8,3.021]
[1755760619294,0.2934,4300.9,4300.8,0.021]
[1755760619704,0.7622,4300.9,4300.8,0.021]
[1755760621992,1.8969932,4300.9,4300.8,0.021]
[1755760625293,5.5569932,4300.9,4300.8,0.021]
[1755760625726,9.1049932,4300.9,4300.8,0.021]
[1755760626336,5.5569932,4300.9,4300.8,0.021]
[1755760626634,9.1069932,4300.9,4300.8,0.021]
[1755760629800,9.1069932,4300.9,4299.8,0.02]
[1755760629801,3.66,4300.8,4299.8,0.02]
[1755760630003,21.37294456,4300.5,4299.8,0.02]
[1755760630414,21.84174456,4300.5,4299.8,0.02]
[1755760633027,33.66,4300.4,4299.8,0.02]
[1755760633229,17.59834456,4299.9,4299.8,0.02]
[1755760633424,30.66,4299.8,4297.8,0.02]
[1755760633627,20.59834456,4298.9,4297.8,0.02]
[1755760633942,26.05534456,4298.9,4297.8,0.02]
[1755760634250,9.2205,4298.9,4297.8,0.02]
[1755760634548,27.37198956,4298.9,4297.8,0.02]
[1755760634747,28.03198956,4298.9,4297.8,0.02]
[1755760637259,3.66,4298.8,4297.8,0.02]
[1755760637455,20.71434456,4297.9,4297.8,0.02]
[1755760637748,27.19113776,4297.9,4297.8,0.02]
[1755760637925,27.65983776,4297.9,4297.8,0.02]
[1755760640314,5.1998,4297.9,4297.8,0.02]
[1755760640545,8.458,4297.9,4297.8,0.3178]
[1755760640746,5.458,4297.9,4297.8,0.7899]
[1755760642147,1.79,4298.6,4297.8,0.7899]
[1755760642348,0.116,4297.9,4297.8,0.3178]
[1755760643151,0.116,4297.9,4297.8,0.7899]
[1755760646371,0.116,4297.9,4297.8,18.09344456]
[1755760646578,0.116,4298.2,4297.9,3.0]
[1755760646740,0.116,4298.2,4298.1,0.2978]
[1755760646946,20.85654456,4299.3,4298.1,0.2978]
[1755760647259,0.116,4298.2,4298.1,0.2978]
[1755760647470,0.116,4298.2,4298.1,0.7699]
[1755760648755,0.116,4298.2,4298.1,1.02789]
[1755760649860,0.116,4298.2,4298.1,0.7699]
[1755760650079,0.116,4298.2,4297.8,2.2821]
[1755760650244,0.4687,4298.9,4298.1,0.2978]
[1755760650438,0.4687,4298.9,4297.8,1.81]
[1755760650773,0.116,4298.0,4297.8,1.81]
[1755760650946,0.116,4298.0,4297.9,0.2978]
[1755760652076,0.116,4298.0,4297.8,1.81]
[1755760652253,0.8795,4298.0,4297.8,0.02]
[1755760653253,0.4108,4298.0,4297.8,0.02]
[1755760654843,0.4108,4298.0,4297.9,0.2978]
[1755760654844,0.116,4298.0,4297.9,0.2978]
[1755760655175,0.116,4298.0,4297.9,0.7699]
[1755760655343,0.116,4298.0,4297.9,0.79316717]
[1755760655668,0.116,4298.0,4297.9,0.7699]
[1755760655872,0.116,4298.0,4297.9,1.20419]
[1755760656569,0.116,4298.0,4297.9,1.22745717]
[1755760656981,0.116,4298.0,4297.9,1.20419]
[1755760657349,0.116,4298.0,4297.9,1.22745717]
[1755760657560,0.116,4298.0,4297.9,1.20419]
[1755760658380,0.116,4298.0,4297.9,0.2978]
[1755760658583,0.116,4298.0,4297.8,0.02]
[1755760658584,0.4108,4298.0,4297.8,0.02]
[1755760659377,0.116,4298.0,4297.8,0.02]
[1755760660072,0.2948,4297.9,4297.8,0.02]
[1755760660273,0.116,4298.0,4297.8,0.02]
[1755760660475,0.116,4298.0,4297.8,0.3178]
[1755760660679,0.116,4298.0,4297.8,0.02]
[1755760662563,0.116,4298.0,4297.9,0.3158]
[1755760662899,0.21701391,4299.3,4297.9,0.79636717]
[1755760663100,4.0236,4299.4,4297.9,0.79636717]
[1755760663101,7.0236,4299.4,4298.0,1.81199117]
[1755760663397,7.0236,4299.4,4298.1,0.4573]
[1755760663398,0.4696,4299.3,4298.1,0.4573]
[1755760663883,0.116,4298.0,4297.9,1.79]
[1755760664049,0.116,4298.0,4297.9,2.1058]
[1755760664250,0.116,4298.0,4297.9,2.5631]
[1755760666588,0.116,4298.0,4297.9,2.1058]
[1755760666974,0.116,4298.0,4297.9,5.5631]
[1755760667787,0.116,4298.0,4297.9,5.1058]
[1755760668096,0.4192,4298.0,4297.9,4.79]
[1755760668786,0.116,4298.0,4297.9,5.1058]
[1755760669361,0.116,4298.0,4297.9,5.5631]
[1755760669589,0.116,4298.0,4297.9,6.43088]
[1755760670889,0.002,4299.4,4298.0,3.0]
[1755760671057,0.116,4298.3,4298.1,0.48056609]
[1755760671374,0.116,4298.3,4298.2,7.48363461]
[1755760671991,0.116,4298.3,4298.2,4.48363461]
[1755760672188,0.116,4298.3,4298.2,4.94093461]
[1755760672377,0.116,4298.3,4298.2,0.92963461]
[1755760672594,0.116,4298.3,4298.2,3.8698]
[1755760673292,0.4192,4298.3,4298.2,3.554]
[1755760673997,0.116,4298.3,4298.2,3.8698]
[1755760675570,0.116,4298.3,4298.2,4.3271]
[1755760676170,0.116,4298.3,4298.2,4.35036555]
[1755760676382,0.116,4298.3,4298.2,6.67149101]
[1755760677891,0.116,4298.3,4298.2,2.66019101]
[1755760678062,0.116,4298.3,4298.2,3.8728]
[1755760678977,0.116,4298.3,4298.2,4.3301]
[1755760679897,0.002,4298.8,4298.2,4.3301]
[1755760680202,0.116,4298.3,4298.2,3.8728]
[1755760680785,0.116,4298.3,4298.2,4.3301]
[1755760680991,0.116,4298.3,4298.2,6.67246446]
[1755760681400,0.116,4298.3,4298.2,10.33246446]
[1755760681600,0.002,4298.8,4298.3,3.66]
[1755760681896,0.002,4298.8,4298.7,20.61934456]
[1755760682095,0.002,4298.8,4298.7,26.62734456]
[1755760682300,0.002,4298.8,4298.7,29.44678419]
[1755760682465,0.002,4298.8,4298.7,29.56278419]
[1755760682917,0.002,4298.8,4298.7,31.88906888]
[1755760683098,0.002,4298.8,4298.7,29.56278419]
[1755760684909,0.002,4298.8,4298.7,31.88906888]
[1755760685327,0.002,4298.8,4298.7,29.56278419]
[1755760685805,0.002,4299.4,4299.3,23.2895046]
[1755760686136,0.002,4299.4,4299.3,27.16629502]
[1755760686430,0.002,4299.4,4299.3,27.73959502]
[1755760687032,0.002,4299.4,4299.3,24.18159502]
[1755760687239,0.002,4299.4,4299.3,27.73959502]
[1755760688322,0.002,4299.4,4299.3,10.43505046]
[1755760688520,0.002,4299.4,4299.3,7.6488]
[1755760688920,0.002,4299.4,4299.3,8.1061]
[1755760689513,0.002,4299.4,4299.3,7.6488]
[1755760689718,0.002,4299.4,4299.3,4.0918]
[1755760689900,0.002,4299.4,4299.3,7.6488]
[1755760690107,0.002,4299.4,4299.3,10.01093963]
[1755760690296,0.002,4299.4,4299.3,5.79393963]
[1755760690493,0.002,4299.4,4299.3,10.46823963]
[1755760691100,0.002,4299.4,4299.3,25.40964456]
[1755760691719,0.002,4299.4,4299.3,24.95234456]
[1755760691927,0.002,4299.4,4299.3,21.39534456]
[1755760692126,0.002,4299.4,4299.3,6.9898]
[1755760692338,0.002,4299.4,4299.3,6.674]
[1755760692542,0.002,4299.4,4299.3,7.3507229]
[1755760692704,0.002,4299.4,4299.3,7.6623229]
[1755760693502,0.002,4299.4,4299.3,7.3507229]
[1755760693726,0.1805,4299.4,4299.3,7.3507229]
[1755760695647,0.1805,4299.4,4299.3,3.7927229]
[1755760695855,0.1805,4299.4,4299.3,7.2327229]
[1755760696656,0.002,4299.4,4299.3,7.2327229]
[1755760697863,0.3064,4299.4,4299.3,3.6767229]
[1755760698062,0.3064,4299.4,4298.8,4.306]
[1755760698063,0.7775,4299.4,4298.8,4.306]
[1755760698261,0.5871,4299.3,4298.9,3.555]
[1755760698461,0.4204,4299.0,4298.9,3.555]
[1755760698754,0.8915,4299.0,4298.9,6.555]
[1755760699251,0.8915,4299.0,4298.9,3.555]
[1755760699449,0.8915,4299.0,4298.4,0.4711]
[1755760699624,0.4711,4298.9,4298.4,0.4711]
[1755760699817,0.4204,4298.5,4298.3,3.558]
[1755760700050,0.4711,4298.4,4298.3,3.558]
[1755760700231,0.7755,4298.4,4298.3,3.558]
[1755760700854,0.4204,4298.4,4298.3,3.558]
[1755760701223,0.8915,4298.4,4298.3,3.558]
[1755760703254,0.8915,4298.4,4298.1,0.001]
[1755760703255,0.7755,4298.4,4298.1,0.001]
[1755760703426,0.3044,4298.4,4298.1,0.001]
[1755760703626,0.4711,4298.3,4298.1,0.001]
[1755760703849,0.3044,4298.2,4298.1,0.001]
[1755760704356,0.7755,4298.2,4298.1,0.001]
[1755760710321,0.3044,4298.2,4298.1,0.001]
[1755760710754,0.7755,4298.2,4298.1,0.001]
[1755760713360,0.8915,4298.2,4298.1,0.001]
[1755760718437,8.50980627,4298.2,4298.1,0.001]
[1755760721347,0.116,4298.2,4298.1,0.3039]
[1755760721850,0.116,4298.2,4298.1,0.001]
[1755760722050,0.8649,4298.2,4298.1,0.001]
[1755760723896,6.9852,4298.2,4298.1,0.001]
[1755760724051,14.60350627,4298.2,4298.1,0.001]
[1755760724247,14.60350627,4298.2,4298.1,0.3039]
[1755760724248,3.672,4298.2,4298.1,0.3039]
[1755760724475,0.116,4298.2,4298.1,0.3039]
[1755760724782,0.116,4298.2,4298.1,0.001]
[1755760725212,0.002,4298.8,4298.1,0.3039]
[1755760725352,0.116,4298.2,4298.1,0.7369]
[1755760727367,0.116,4298.2,4298.1,0.3039]
[1755760727776,7.73430627,4298.2,4298.1,0.3039]
[1755760728887,7.73430627,4298.2,4298.1,0.001]
[1755760729302,8.04750627,4298.2,4298.1,0.001]
[1755760729472,8.48320627,4298.2,4298.1,0.001]
[1755760729672,8.8958269,4298.2,4298.1,0.001]
[1755760729873,9.3315269,4298.2,4298.1,0.001]
[1755760730217,12.8875269,4298.2,4298.1,0.001]
[1755760732891,15.8875269,4298.2,4298.1,0.001]
[1755760736494,12.3315269,4298.2,4298.1,0.001]
[1755760736698,15.8855269,4298.2,4298.1,0.001]
[1755760738698,15.8855269,4298.2,4297.8,0.021]
[1755760738699,10.61830627,4297.9,4297.8,0.021]
[1755760738903,15.73492384,4297.9,4297.8,0.021]
[1755760739078,16.17062384,4297.9,4297.8,0.021]
[1755760739813,4.25041757,4297.9,4297.8,0.021]
[1755760739990,14.28730627,4297.9,4297.8,0.021]
[1755760740313,14.28730627,4297.9,4297.8,0.3239]
[1755760741517,14.60050627,4297.9,4297.8,0.021]
[1755760741680,15.03620627,4297.9,4297.8,0.021]
[1755760743986,15.03520627,4297.9,4297.8,0.021]
[1755760744299,16.5387269,4297.9,4297.8,0.021]
[1755760745725,15.7898269,4297.9,4297.8,0.7569]
[1755760746215,16.1030269,4297.9,4297.8,0.021]
[1755760746518,16.5387269,4297.9,4297.8,0.021]
[1755760747425,16.1030269,4297.9,4297.8,0.021]
[1755760747735,16.5387269,4297.9,4297.8,0.021]
[1755760748205,16.5387269,4297.9,4297.3,0.001]
[1755760748513,10.73430627,4297.4,4297.3,0.001]
[1755760748718,14.59950627,4297.4,4297.3,0.001]
[1755760749403,15.03520627,4297.4,4297.3,0.001]
[1755760751011,14.59950627,4297.4,4297.3,0.001]
[1755760751714,3.0,4297.3,4296.9,0.001]
[1755760751917,11.02680627,4297.0,4296.9,0.001]
[1755760752120,14.57880627,4297.0,4296.9,0.001]
[1755760752522,15.05220627,4297.0,4296.9,0.001]
[1755760753744,7.61830627,4296.2,4296.1,0.425]
[1755760753918,11.17030627,4296.2,4296.1,0.7219]
[1755760754126,11.28630627,4296.2,4296.1,0.7219]
[1755760756647,11.28630627,4296.2,4296.1,0.6719]
[1755760756852,11.28630627,4296.2,4296.1,0.2969]
[1755760759655,8.02680627,4296.2,4295.8,0.02]
[1755760759864,7.61830627,4295.9,4295.8,0.02]
[1755760760063,11.28730627,4295.9,4295.8,0.7709]
[1755760760297,11.28730627,4295.9,4295.8,0.3169]
[1755760760575,0.116,4295.9,4295.8,0.7709]
[1755760762256,0.116,4295.9,4295.8,0.3169]
[1755760763037,0.116,4295.9,4295.8,0.7709]
[1755760765554,0.116,4295.9,4295.8,0.3169]
[1755760765923,0.116,4295.9,4295.8,0.7709]
[1755760767252,0.116,4295.9,4295.8,0.3169]
[1755760767557,3.116,4295.9,4295.8,0.02]
[1755760768260,3.116,4295.9,4295.8,0.3169]
[1755760768657,3.116,4295.9,4295.8,0.7709]
[1755760768963,7.73430627,4295.9,4295.8,0.7709]
[1755760774785,7.73430627,4295.9,4295.8,0.3169]
[1755760780952,0.116,4295.9,4295.8,0.3169]
[1755760781149,7.73430627,4295.9,4295.8,0.3169]
[1755760781550,7.73430627,4295.9,4295.8,0.7849]
[1755760782948,7.73430627,4295.9,4295.8,0.3169]
[1755760784951,0.116,4295.9,4295.8,0.3169]
[1755760785262,0.116,4295.9,4295.8,0.80817855]
[1755760785691,0.116,4295.9,4295.8,0.7849]
[1755760785868,0.116,4295.9,4295.8,0.3169]
[1755760786070,0.116,4295.9,4295.8,0.7849]
[1755760788299,0.116,4295.9,4295.8,0.3169]
[1755760788889,0.4256,4295.9,4295.8,0.02]
[1755760789074,0.8969,4295.9,4295.8,0.02]
[1755760789282,0.4256,4295.9,4295.8,0.02]
[1755760789603,0.116,4295.9,4295.8,0.02]
[1755760790900,0.116,4295.9,4295.8,0.3076]
[1755760795103,0.116,4295.9,4295.8,0.7756]
[1755760796210,0.4256,4295.9,4295.8,0.02]
[1755760796415,1.70129063,4295.9,4295.6,0.001]
[1755760796712,10.61830627,4295.7,4295.6,0.001]
[1755760796894,10.92790627,4295.7,4295.6,0.001]
[1755760797079,11.39920627,4295.7,4295.6,0.001]
[1755760797702,14.95120627,4295.7,4295.6,0.001]
[1755760801188,15.61120627,4295.7,4295.6,0.001]
[1755760801388,17.3514269,4295.7,4295.6,0.001]
[1755760803532,16.6914269,4295.7,4295.6,0.001]
[1755760803821,14.95120627,4295.7,4295.6,0.001]
[1755760803981,14.95120627,4295.7,4294.8,0.488]
[1755760803982,3.0,4295.6,4294.8,0.02]
[1755760804186,11.58790627,4294.9,4294.8,0.02]
[1755760804415,16.93590627,4294.9,4294.8,0.02]
[1755760804620,16.93590627,4294.9,4293.8,0.02]
[1755760804621,0.66,4294.8,4293.8,0.02]
[1755760804822,7.92790627,4293.9,4293.8,0.02]
[1755760804985,11.48490627,4293.9,4293.8,0.02]
[1755760806396,7.92790627,4293.9,4293.8,0.02]
[1755760806597,11.60170627,4293.9,4293.8,0.02]
[1755760808824,0.1168,4293.9,4293.8,0.3076]
[1755760809027,0.1168,4293.9,4293.8,0.7756]
[1755760809028,3.6728,4293.9,4293.8,0.7756]
[1755760809228,3.6728,4293.9,4293.8,0.3076]
[1755760809439,3.9824,4293.9,4293.8,0.02]
[1755760813430,11.60070627,4293.9,4293.8,0.02]
[1755760814917,8.04470627,4293.9,4293.8,0.02]
[1755760815103,11.59970627,4293.9,4293.8,0.02]
[1755760815304,8.04470627,4293.9,4293.8,0.02]
[1755760815530,11.59970627,4293.9,4293.8,0.02]
[1755760816957,12.05470627,4293.9,4293.8,0.02]
[1755760817860,13.2601769,4293.9,4293.8,0.02]
[1755760819192,0.4264,4293.9,4293.8,0.02]
[1755760819359,0.4264,4293.9,4293.8,0.3346]
[1755760819360,11.28810627,4293.9,4293.8,0.3346]
[1755760819782,12.04290627,4293.9,4293.8,0.02]
[1755760820160,3.6708,4293.9,4293.8,0.3346]
[1755760820348,11.28910627,4293.9,4293.8,0.3346]
[1755760820548,0.1168,4293.9,4293.8,0.3346]
[1755760820758,0.1168,4293.9,4293.8,0.7638]
[1755760821148,0.1168,4293.9,4293.8,0.7648]
[1755760823466,0.1168,4293.9,4293.8,0.3356]
[1755760823665,0.1168,4293.9,4293.8,0.7648]
[1755760824068,7.73510627,4293.9,4293.8,0.021]
[1755760824385,13.1728169,4293.9,4293.8,0.021]
[1755760824554,12.04390627,4293.9,4293.8,0.021]
[1755760824883,4.4256,4293.9,4293.8,0.021]
[1755760827567,13.2482969,4293.9,4293.8,0.021]
[1755760828074,12.7932969,4293.9,4293.8,0.021]
[1755760828286,9.6942969,4293.9,4293.8,0.021]
[1755760828483,13.2482969,4293.9,4293.8,0.021]
[1755760828702,16.2482969,4293.9,4293.8,0.021]
[1755760831796,12.6942969,4293.9,4293.8,0.021]
[1755760831998,16.2482969,4293.9,4293.8,0.021]
[1755760832280,12.6942969,4293.9,4293.8,0.021]
[1755760832452,16.2482969,4293.9,4293.8,0.021]
[1755760832653,12.6942969,4293.9,4293.8,0.021]
[1755760832890,16.2482969,4293.9,4293.8,0.021]
[1755760834075,12.6942969,4293.9,4293.8,0.021]
[1755760834295,16.2482969,4293.9,4293.8,0.021]
[1755760834886,6.6708,4293.9,4293.8,0.3356]
[1755760835099,14.28910627,4293.9,4293.8,0.3356]
[1755760835497,15.04390627,4293.9,4293.8,0.021]
[1755760839086,14.28910627,4293.9,4293.8,0.021]
[1755760839306,16.1970169,4293.9,4293.8,0.021]
[1755760839493,12.6430169,4293.9,4293.8,0.021]
[1755760839701,16.1970169,4293.9,4293.8,0.021]
[1755760840080,16.6520169,4293.9,4293.8,0.021]
[1755760841189,17.3120169,4293.9,4293.8,0.021]
[1755760841701,3.0,4293.8,4292.8,0.02]
[1755760842014,7.73510627,4292.9,4292.8,0.02]
[1755760842187,11.28910627,4292.9,4292.8,0.02]
[1755760842375,11.28910627,4292.9,4292.8,0.006]
[1755760843004,11.60440627,4292.9,4292.8,0.006]
[1755760843880,7.73510627,4292.9,4292.8,0.3035]
[1755760844078,11.28910627,4292.9,4292.8,0.3035]
[1755760844317,7.73510627,4292.9,4292.8,0.7594]
[1755760844496,0.1168,4292.9,4292.8,0.7594]
[1755760845806,0.1168,4292.9,4292.8,0.3035]
[1755760846308,3.6708,4292.9,4292.8,0.7594]
[1755760846883,3.6708,4292.9,4292.8,0.3035]
[1755760847184,3.6708,4292.9,4292.8,0.7594]
[1755760848010,3.6708,4292.9,4292.8,0.7394]
[1755760848523,3.6708,4292.9,4292.8,0.2835]
[1755760849404,4.4531,4292.9,4292.3,0.001]
[1755760849603,7.73510627,4292.4,4292.3,0.001]
[1755760849814,7.73510627,4292.4,4292.3,0.2985]
[1755760851417,7.73510627,4292.4,4292.3,0.7544]
[1755760851607,11.28910627,4292.4,4292.3,0.2985]
[1755760851779,11.60440627,4292.4,4292.3,0.001]
[1755760851982,13.2003169,4292.4,4292.3,0.001]
[1755760852177,3.9861,4292.4,4292.3,0.001]
[1755760852419,8.05040627,4292.4,4292.3,0.001]
[1755760852614,11.28910627,4292.4,4292.3,0.001]
[1755760853004,11.60440627,4292.4,4292.3,0.001]
[1755760853385,12.07140627,4292.4,4292.3,0.001]
[1755760853589,13.2785469,4292.4,4292.3,0.001]
[1755760854292,9.7245469,4292.4,4292.3,0.001]
[1755760854713,3.6708,4292.4,4292.3,0.2985]
[1755760854917,11.28910627,4292.4,4292.3,0.2985]
[1755760855285,3.6708,4292.4,4292.3,0.7544]
[1755760855493,0.1168,4292.4,4292.3,0.7544]
[1755760855701,3.554,4293.4,4292.3,0.77769753]
[1755760855883,0.1168,4292.7,4292.4,0.83960038]
[1755760856094,0.1168,4292.7,4292.6,0.2975]
[1755760856291,0.1168,4292.7,4292.6,0.7534]
[1755760857111,1.792,4294.0,4292.6,0.7766959]
[1755760857310,0.1168,4293.0,4292.7,0.4559]
[1755760857626,0.1168,4293.0,4292.9,0.2975]
[1755760857995,7.73510627,4293.0,4292.9,0.2975]
[1755760858201,0.1168,4293.0,4292.9,0.7534]
[1755760858601,0.1168,4293.0,4292.9,0.2975]
[1755760858602,7.73510627,4293.0,4292.9,0.2975]
[1755760859120,7.73510627,4293.0,4292.9,0.7534]
[1755760860198,0.1168,4293.0,4292.9,0.7534]
[1755760860392,0.02,4293.8,4292.9,0.7534]
[1755760860698,0.002,4293.4,4293.3,7.73510627]
[1755760860897,0.002,4293.4,4293.3,5.04703]
[1755760862648,0.002,4293.4,4293.3,5.2199195]
[1755760864011,0.002,4293.4,4293.3,8.20913013]
[1755760866317,0.002,4293.4,4293.3,25.56098056]
[1755760867201,0.002,4293.4,4293.3,11.76313013]
[1755760868434,0.002,4293.4,4293.3,11.76213013]
[1755760869732,0.002,4293.4,4293.3,9.4329195]
[1755760870441,0.002,4293.4,4293.3,4.7640195]
[1755760870734,0.002,4293.4,4293.3,7.1401895]
[1755760871337,0.3148,4293.4,4293.3,3.8426895]
[1755760871634,0.3148,4293.4,4293.2,1.792]
[1755760871635,0.784,4293.4,4293.2,1.792]
[1755760871857,0.1168,4293.3,4293.2,5.345]
[1755760872066,0.8988,4293.3,4293.2,8.345]
[1755760872668,0.8988,4293.3,4292.8,0.001]
[1755760872828,0.1168,4292.9,4292.8,0.001]
[1755760873020,0.4296,4292.9,4292.8,0.001]
[1755760873233,0.8988,4292.9,4292.8,0.001]
[1755760876962,18.13385043,4292.9,4292.8,0.001]
[1755760878575,21.68685043,4292.9,4292.8,0.001]
[1755760880078,22.34685043,4292.9,4292.8,0.001]
[1755760881153,18.79385043,4292.9,4292.8,0.001]
[1755760881486,33.99973704,4292.8,4292.3,0.001]
[1755760881685,17.35185043,4291.1,4290.8,0.02]
[1755760881871,17.35185043,4291.1,4287.3,0.4588]
[1755760881872,3.66,4291.0,4287.3,0.4588]
[1755760882052,3.0,4288.8,4286.8,0.02]
[1755760882251,20.66465043,4287.9,4286.8,0.02]
[1755760882447,3.0,4287.8,4286.5,1.443]
[1755760882686,3.0,4287.8,4283.0,0.12180075]
[1755760882687,3.0,4286.4,4283.4,0.701531]
[1755760882859,0.3128,4284.0,4283.4,0.701531]
[1755760883045,0.3128,4284.0,4282.7,0.17405367]
[1755760883046,0.66,4284.6,4283.5,0.4588]
[1755760883250,0.66,4284.6,4282.7,0.17405367]
[1755760883251,0.3128,4284.0,4282.7,0.17405367]
[1755760883604,0.4692,4284.6,4283.2,0.4588]
[1755760884081,0.66,4285.1,4283.2,0.4588]
[1755760884264,17.35185043,4285.7,4284.5,0.2934]
[1755760884462,13.24603977,4286.4,4284.6,0.0233394]
[1755760884665,13.24603977,4286.5,4284.7,0.4588]
[1755760884972,0.4692,4287.0,4284.8,0.02333831]
[1755760885174,4.57435588,4290.8,4286.9,0.2934]
[1755760885175,13.24603977,4288.2,4286.9,0.2934]
[1755760885501,0.701742,4288.2,4286.9,0.2934]
[1755760885781,13.24603977,4287.9,4286.8,1.793]
[1755760885987,3.696,4288.6,4286.9,0.4588]
[1755760886217,0.3128,4287.0,4283.6,0.2]
[1755760886353,13.24603977,4285.7,4284.0,0.4588]
[1755760886552,13.24603977,4285.6,4284.0,0.4588]
[1755760886974,0.1168,4284.1,4283.7,1.793]
[1755760887282,0.1168,4283.8,4283.7,1.793]
[1755760887670,1.1292,4285.7,4283.7,2.31158]
[1755760887932,0.1168,4284.4,4283.8,3.48214376]
[1755760888102,0.4692,4286.5,4283.8,3.48214376]
[1755760888103,0.1168,4284.7,4284.3,0.2934]
[1755760888277,0.1168,4284.7,4284.4,3.48214049]
[1755760888472,0.02,4284.8,4284.7,2.33388568]
[1755760888701,0.02,4284.8,4284.7,6.28728568]
[1755760888872,0.02,4285.8,4285.3,0.66]
[1755760889068,0.02,4285.8,4285.7,16.53943977]
[1755760889268,0.02,4285.8,4285.7,7.0204]
[1755760889502,0.02,4285.8,4285.7,12.83468074]
[1755760889810,0.02,4285.8,4285.7,26.19752051]
[1755760889966,0.02,4285.8,4285.7,26.19852051]
[1755760890470,0.02,4285.8,4285.7,22.47052051]
[1755760890677,0.02,4285.8,4285.7,9.95913963]
[1755760890871,0.02,4285.8,4285.7,3.869]
[1755760891186,0.02,4285.8,4285.7,5.5462]
[1755760891382,0.02,4285.8,4285.7,9.2772]
[1755760891579,0.02,4285.8,4285.7,5.5462]
[1755760891787,0.02,4285.8,4285.7,9.2762]
[1755760892003,0.02,4285.8,4285.7,13.20884111]
[1755760892184,0.02,4285.8,4285.7,26.45488088]
[1755760892900,0.02,4285.8,4285.7,22.72488088]
[1755760893105,0.02,4285.8,4285.7,26.45588088]
[1755760893805,0.02,4285.8,4285.7,3.0267]
[1755760894131,0.02,4285.8,4285.7,8.526]
[1755760894407,0.02,4285.8,4285.7,4.794]
[1755760894783,0.02,4285.8,4285.7,8.525]
[1755760895179,0.02,4285.8,4285.7,8.8184]
[1755760895382,0.02,4285.8,4285.7,5.5462]
[1755760895582,0.02,4285.8,4285.7,4.794]
[1755760895788,0.02,4285.8,4285.7,1.794]
[1755760895789,0.9188,4285.8,4285.7,1.794]
[1755760895985,0.9188,4285.8,4285.2,0.001]
[1755760895986,0.802,4285.8,4285.2,0.001]
[1755760896213,0.4692,4285.7,4285.2,0.001]
[1755760896409,0.3128,4285.3,4285.2,0.001]